bitfinex/quotes_ETHUSD_20260203
["timestamp","ask_amount","ask_price","bid_price","bid_amount"]
[1770145821408,12.48142126,2156.2,2153.9,10.47919198]
[1770145821720,0.1024,2156.5,2153.7,1.02787651]
[1770145822024,12.49998318,2156.5,2154.1,1.1605775]
[1770145822220,12.49070222,2156.5,2154.3,0.1024]
[1770145822376,12.49070222,2157.2,2155.1,10.3433184]
[1770145822574,0.01160039,2157.1,2155.2,0.974]
[1770145822812,12.66983008,2158.0,2155.7,0.1024]
[1770145823018,0.17912786,2158.0,2156.3,0.1024]
[1770145823351,12.49070222,2159.4,2158.0,0.00467355]
[1770145823615,0.01160039,2158.7,2157.3,0.974]
[1770145823777,0.01160039,2158.4,2157.3,0.974]
[1770145823980,12.50230261,2157.4,2155.7,2.20425555]
[1770145824212,12.50230261,2157.4,2155.3,4.63971494]
[1770145824213,0.01160039,2156.7,2155.3,4.63971494]
[1770145824506,12.49070222,2157.4,2155.6,1.15973143]
[1770145824705,0.01160039,2158.5,2155.2,1.15996672]
[1770145824706,0.01160039,2157.1,2155.2,1.15996672]
[1770145824876,0.01160039,2156.8,2155.1,0.974]
[1770145825084,0.01160039,2156.7,2155.2,1.15993977]
[1770145825385,0.01160039,2157.1,2155.2,1.15993977]
[1770145825386,0.01160039,2157.4,2155.2,1.39189706]
[1770145825595,0.01160039,2157.5,2155.2,1.39189706]
[1770145825596,0.01160039,2157.5,2155.8,10.3433184]
[1770145825795,12.49070222,2158.0,2155.9,1.15960851]
[1770145826008,12.49070222,2158.0,2156.1,0.1024]
[1770145826214,12.49070222,2158.0,2156.0,0.973]
[1770145826426,0.01160039,2157.8,2156.0,0.973]
[1770145826587,0.01160039,2157.8,2155.8,14.98175246]
[1770145826588,12.50230261,2157.7,2155.8,1.15965536]
[1770145826913,12.49070222,2158.5,2156.0,0.1024]
[1770145827151,0.01160039,2158.3,2156.0,1.16053738]
[1770145827280,0.01160039,2157.8,2156.0,1.16053738]
[1770145827476,0.01160039,2157.8,2155.3,0.23658971]
[1770145827477,0.01160039,2157.5,2155.3,0.23658971]
[1770145827782,0.01160039,2157.9,2154.9,10.3433184]
[1770145827783,0.01160039,2158.2,2155.8,0.1024]
[1770145828001,12.49070222,2158.5,2156.0,0.1024]
[1770145828204,12.49070222,2158.5,2156.1,10.5768887]
[1770145828414,12.49070222,2158.5,2155.6,4.63864922]
[1770145828415,0.01160039,2158.2,2155.8,10.3433184]
[1770145828708,12.49070222,2158.8,2156.3,10.3433184]
[1770145828884,12.50230261,2158.6,2156.4,0.973]
[1770145829087,12.49070222,2158.6,2156.7,0.2335703]
[1770145829288,12.49070222,2158.6,2156.9,0.2335703]
[1770145829616,0.0011,2159.5,2156.6,10.3433184]
[1770145829617,0.0011,2159.5,2157.8,0.3359703]
[1770145829780,12.49070222,2160.0,2158.6,0.02191232]
[1770145829984,12.50230261,2159.8,2158.6,0.02191232]
[1770145830215,12.50230261,2159.8,2157.9,2.13153375]
[1770145830216,12.49134645,2159.4,2157.9,0.973]
[1770145830412,12.49134645,2159.4,2156.8,1.15910422]
[1770145830413,12.49134645,2159.2,2156.8,1.15910422]
[1770145830706,0.01160039,2159.5,2156.8,1.15910422]
[1770145830707,12.47974606,2159.0,2157.0,4.63590839]
[1770145830922,12.49134645,2158.9,2156.8,2.1321028]
[1770145831125,12.47974606,2158.9,2157.1,4.63579761]
[1770145831326,12.47974606,2158.9,2157.0,0.1024]
[1770145831526,12.47974606,2158.9,2157.1,0.4067004]
[1770145831739,12.47974606,2158.9,2157.2,0.40660204]
[1770145832031,12.47974606,2159.8,2157.4,0.2335703]
[1770145832239,0.01160039,2159.6,2157.6,0.2335703]
[1770145832544,12.47974606,2159.7,2157.8,0.3359703]
[1770145832749,12.47974606,2159.7,2157.9,0.40660204]
[1770145833238,12.47974606,2159.7,2158.0,0.40660204]
[1770145833406,0.01160039,2159.4,2158.1,0.40660204]
[1770145833611,0.01160039,2158.8,2158.2,0.40660204]
[1770145833925,0.01160039,2158.8,2157.1,0.973]
[1770145833926,0.01160039,2158.4,2157.1,0.973]
[1770145834131,12.49134645,2158.6,2157.2,0.41197703]
[1770145834334,0.01160039,2158.1,2156.4,0.973]
[1770145834500,12.47974606,2158.3,2156.5,0.4127686]
[1770145834700,0.01160039,2157.7,2156.6,0.4127686]
[1770145834898,0.01160039,2158.6,2156.7,0.4127686]
[1770145835097,12.49134645,2158.1,2157.0,1.15899927]
[1770145835314,0.01160039,2158.0,2157.1,0.4127686]
[1770145835505,0.01160039,2157.6,2155.5,11.87789575]
[1770145835707,12.47974606,2157.8,2155.6,3.87626239]
[1770145835928,12.49134645,2157.8,2155.7,1.36968504]
[1770145836130,12.49134645,2157.8,2155.8,1.36968504]
[1770145836337,12.47974606,2157.8,2156.2,10.3433184]
[1770145836633,12.47974606,2157.8,2156.3,1.36968504]
[1770145836802,12.47974606,2157.8,2156.4,0.41452109]
[1770145837006,12.47974606,2157.8,2156.5,0.41452109]
[1770145837206,0.01160039,2157.2,2156.6,0.41452109]
[1770145837409,0.01160039,2156.9,2155.3,1.53457735]
[1770145837625,0.01160039,2156.8,2155.2,0.972]
[1770145837824,0.01160039,2157.1,2155.2,0.972]
[1770145838030,0.01160039,2156.7,2155.2,0.972]
[1770145838332,0.01160039,2156.3,2155.2,0.972]
[1770145839032,0.01160039,2156.4,2154.7,1.16022342]
[1770145839233,0.01160039,2156.5,2154.5,1.53457735]
[1770145839234,0.01160039,2155.4,2154.5,0.972]
[1770145839409,0.01160039,2155.6,2154.5,0.972]
[1770145839602,0.01160039,2155.3,2154.5,0.972]
[1770145839804,0.01160039,2156.4,2154.5,2.13235968]
[1770145840006,0.01160039,2155.7,2154.6,1.71171377]
[1770145840314,0.01160039,2156.2,2154.5,0.972]
[1770145840513,0.01160039,2156.9,2154.5,0.972]
[1770145840514,0.01160039,2156.8,2155.0,10.3433184]
[1770145840816,0.01160039,2156.4,2155.1,0.9583718]
[1770145841018,0.01160039,2156.3,2154.7,1.53457735]
[1770145841221,0.01160039,2156.4,2154.8,1.76814765]
[1770145841534,0.01160039,2156.4,2154.9,1.36887757]
[1770145841735,0.01160039,2156.4,2155.0,0.95952732]
[1770145842062,0.01160039,2155.9,2155.0,0.95952732]
[1770145842334,0.01160039,2155.6,2154.5,0.972]
[1770145842532,0.01160039,2156.0,2154.6,0.9624745]
[1770145842735,0.01160039,2156.8,2154.7,0.9624745]
[1770145842909,0.01160039,2155.9,2154.8,0.9624745]
[1770145843110,0.01160039,2156.0,2154.7,0.30947747]
[1770145843323,12.2963913,2156.4,2154.7,1.53457735]
[1770145843503,0.01160039,2156.0,2154.8,0.96386018]
[1770145843705,0.01160039,2155.6,2154.9,0.96386018]
[1770145843907,0.01160039,2155.1,2154.2,0.001]
[1770145844106,0.01160039,2155.2,2154.3,0.9639809]
[1770145844340,0.01160039,2155.4,2154.4,0.96369696]
[1770145844512,0.01160039,2155.1,2154.2,0.001]
[1770145844837,0.01160039,2155.2,2154.2,0.001]
[1770145845023,12.2963913,2155.8,2154.2,0.001]
[1770145845204,0.01160039,2155.6,2154.3,0.96393306]
[1770145845412,12.2963913,2156.4,2154.9,1.16011395]
[1770145845736,0.01160039,2155.9,2155.0,0.96393306]
[1770145845981,0.01160039,2155.8,2154.8,0.973]
[1770145846249,0.01160039,2155.8,2154.3,2.50757735]
[1770145846250,0.01160039,2155.7,2154.3,2.50757735]
[1770145846454,0.01160039,2155.6,2154.4,1.21497973]
[1770145846657,0.01160039,2155.1,2154.2,0.001]
[1770145846817,0.01160039,2155.4,2154.3,0.96431281]
[1770145847171,0.01160039,2155.3,2154.2,0.001]
[1770145847343,12.30799169,2155.5,2154.2,0.001]
[1770145847344,12.2963913,2155.5,2154.3,0.96444498]
[1770145847548,0.01160039,2155.7,2154.4,0.96444498]
[1770145847844,0.01160039,2155.7,2154.5,0.96444498]
[1770145848054,0.01160039,2155.7,2154.6,0.96444498]
[1770145848341,0.01160039,2155.2,2154.2,0.001]
[1770145848654,0.01160039,2155.2,2154.3,0.96510369]
[1770145848858,0.01160039,2155.2,2154.2,0.001]
[1770145849026,0.01160039,2155.3,2154.3,0.9641545]
[1770145849224,0.01160039,2155.3,2154.2,0.001]
[1770145849225,0.01160039,2155.1,2154.2,0.001]
[1770145849624,0.01160039,2155.2,2154.2,0.001]
[1770145850039,0.01160039,2154.9,2154.2,0.001]
[1770145850219,0.01160039,2154.9,2154.0,0.001]
[1770145850426,0.01160039,2155.2,2154.0,0.001]
[1770145850730,0.01160039,2154.8,2154.0,0.001]
[1770145851148,0.01160039,2154.9,2154.0,0.001]
[1770145851348,12.34268556,2155.7,2154.1,0.96377289]
[1770145851528,12.34268556,2155.7,2154.0,0.001]
[1770145851529,0.01160039,2155.5,2154.2,0.96377289]
[1770145851730,0.01160039,2155.5,2154.3,0.96377289]
[1770145852052,0.01160039,2155.5,2154.0,0.001]
[1770145852255,0.01160039,2155.5,2154.1,0.96384069]
[1770145852553,12.34268556,2155.2,2154.0,0.001]
[1770145852730,0.01160039,2155.0,2154.0,0.001]
[1770145853154,0.01160039,2155.0,2154.1,0.001]
[1770145853473,0.01160039,2155.1,2154.1,0.001]
[1770145853634,0.01160039,2155.0,2154.1,0.001]
[1770145853831,0.01160039,2154.9,2154.1,0.001]
[1770145854027,0.01160039,2154.6,2153.3,0.973]
[1770145854230,12.03208591,2154.4,2152.8,1.53457735]
[1770145854428,0.01160039,2155.0,2152.4,0.973]
[1770145854429,0.01160039,2153.7,2152.4,0.973]
[1770145854679,0.01160039,2153.5,2152.4,0.973]
[1770145854868,0.01160039,2153.4,2152.4,1.53493469]
[1770145855069,0.01160039,2153.3,2152.4,0.973]
[1770145855646,0.01160039,2153.6,2152.4,0.973]
[1770145855938,0.01160039,2153.1,2151.7,1.16186875]
[1770145856141,0.01160039,2153.1,2151.6,0.973]
[1770145856461,0.01160039,2153.0,2151.6,0.973]
[1770145856635,0.01160039,2153.1,2151.7,2.12479785]
[1770145856835,0.01160039,2153.1,2151.8,0.30977979]
[1770145857030,0.01160039,2153.2,2151.8,0.30977979]
[1770145857235,0.01160039,2153.2,2151.7,1.16184616]
[1770145857470,0.01160039,2153.2,2151.7,1.16184657]
[1770145857770,0.01160039,2153.1,2151.6,0.973]
[1770145858533,0.01160039,2153.0,2151.6,0.973]
[1770145858740,0.01160039,2153.1,2151.6,0.973]
[1770145858969,0.01160039,2153.0,2151.6,0.973]
[1770145859270,0.01160039,2152.6,2151.1,1.16217997]
[1770145859588,0.01160039,2152.6,2151.2,0.58111801]
[1770145859589,0.01160039,2152.3,2151.2,0.58111801]
[1770145859865,0.01160039,2152.3,2150.8,0.973]
[1770145859866,0.01160039,2151.9,2150.8,0.973]
[1770145860036,0.01160039,2152.5,2150.8,0.973]
[1770145860234,0.01160039,2152.3,2150.8,0.973]
[1770145860463,0.01160039,2152.1,2150.8,0.973]
[1770145860769,0.01160039,2152.7,2150.8,2.13534161]
[1770145860972,0.01160039,2152.7,2150.9,0.67847744]
[1770145860973,0.01160039,2152.4,2150.9,0.67847744]
[1770145861176,0.01160039,2152.4,2150.8,2.1353552]
[1770145861406,0.01160039,2152.7,2150.9,0.96241895]
[1770145861671,0.01160039,2152.7,2150.8,2.1353552]
[1770145861672,0.01160039,2153.8,2150.8,2.1353552]
[1770145861673,12.03208591,2154.0,2152.1,10.3433184]
[1770145861843,0.01160039,2154.5,2152.1,10.3433184]
[1770145861844,0.01160039,2154.5,2152.2,2.58200874]
[1770145862038,0.01160039,2154.5,2152.3,1.44599045]
[1770145862039,0.01160039,2153.1,2152.3,1.44599045]
[1770145862239,0.01160039,2153.1,2151.7,1.16183587]
[1770145862475,0.01160039,2152.9,2151.6,1.16192358]
[1770145862674,12.03208591,2154.1,2152.3,1.16154578]
[1770145862881,0.01160039,2154.2,2152.4,0.974]
[1770145863089,12.0436863,2153.9,2152.4,0.974]
[1770145863385,0.01160039,2154.1,2150.7,1.53457735]
[1770145863386,0.01160039,2152.1,2150.7,1.53457735]
[1770145863595,0.01160039,2152.1,2150.7,1.16240528]
[1770145863740,12.0436863,2152.2,2150.7,1.16240528]
[1770145863937,0.01160039,2151.6,2150.3,0.974]
[1770145864195,0.01160039,2151.6,2149.9,2.32535489]
[1770145864196,0.01160039,2150.9,2149.7,0.001]
[1770145864472,0.01160039,2151.3,2149.8,1.16286038]
[1770145864771,0.01160039,2151.5,2150.3,1.16258308]
[1770145864946,12.03208591,2151.8,2150.2,2.13667229]
[1770145865147,12.03208591,2151.8,2150.2,2.13665705]
[1770145865353,12.03208591,2151.8,2150.3,1.16258522]
[1770145865656,12.03208591,2151.8,2150.3,1.16262109]
[1770145865959,0.974,2152.4,2150.3,1.16262109]
[1770145865960,12.03208591,2152.5,2150.7,1.20856812]
[1770145866147,12.03208591,2152.5,2150.8,0.96652028]
[1770145866349,12.0436863,2152.3,2150.5,1.16251304]
[1770145866566,0.01160039,2152.2,2150.5,1.16251304]
[1770145866871,12.0436863,2152.2,2150.5,1.16251304]
[1770145867240,0.01160039,2152.4,2150.5,1.16250243]
[1770145867241,12.03208591,2151.9,2150.5,1.16250243]
[1770145867441,12.03208591,2151.9,2150.6,0.58125838]
[1770145867742,11.78583177,2151.9,2150.5,1.16251295]
[1770145867946,12.02654222,2152.5,2150.7,0.2335703]
[1770145868274,12.03814261,2153.7,2151.6,1.20856812]
[1770145868509,12.02654222,2153.7,2151.9,1.20856812]
[1770145868646,0.01160039,2153.2,2152.0,1.24137388]
[1770145868846,0.01160039,2152.8,2151.7,0.974]
[1770145869147,0.01160039,2152.6,2151.7,0.974]
[1770145869372,0.01160039,2152.2,2150.8,1.20856812]
[1770145869699,12.02654222,2152.2,2151.0,0.974]
[1770145870046,12.02654222,2152.2,2151.0,2.13620633]
[1770145870352,12.03814261,2152.8,2151.1,0.96848851]
[1770145870674,0.01160039,2152.4,2151.0,2.13623127]
[1770145870976,12.02654222,2153.1,2151.1,0.96813217]
[1770145871173,12.02654222,2153.1,2151.4,1.20856812]
[1770145871372,0.01160039,2153.0,2151.4,2.17670029]
[1770145871683,0.01160039,2152.8,2151.2,1.79331901]
[1770145871851,12.02654222,2152.7,2151.3,0.974]
[1770145872051,0.01160039,2152.4,2151.3,0.974]
[1770145872660,12.02654222,2152.7,2151.4,0.97073352]
[1770145872857,0.01160039,2153.9,2151.5,1.2811795]
[1770145872858,12.03814261,2153.3,2151.5,1.2811795]
[1770145873058,12.02654222,2153.9,2152.0,1.20856812]
[1770145873375,0.01160039,2153.3,2152.1,0.97049992]
[1770145873576,12.02654222,2153.4,2152.2,0.9708763]
[1770145873777,12.02654222,2153.4,2152.3,0.9703072]
[1770145874080,12.02654222,2153.4,2152.0,1.20856812]
[1770145874280,12.02654222,2153.4,2152.1,0.97017555]
[1770145874487,12.02654222,2153.4,2152.1,1.20856812]
[1770145874848,12.02654222,2154.0,2152.4,1.20856812]
[1770145875171,0.01160039,2154.5,2152.8,1.20856812]
[1770145875376,12.02654222,2154.6,2153.1,1.20856812]
[1770145875557,0.01270039,2155.2,2153.1,1.20856812]
[1770145875558,0.0011,2155.2,2153.8,10.3433184]
[1770145875769,12.03814261,2155.9,2154.4,1.20856812]
[1770145875968,12.03814261,2155.9,2154.5,0.96806333]
[1770145875969,0.01160039,2155.6,2154.5,0.96806333]
[1770145876161,0.01160039,2155.3,2154.3,0.974]
[1770145876360,0.01160039,2155.2,2154.3,0.974]
[1770145876560,0.01160039,2154.9,2153.7,3.90392811]
[1770145876794,0.01160039,2155.0,2153.8,1.35955784]
[1770145877012,0.01160039,2155.0,2153.9,0.96916503]
[1770145877160,12.02654222,2155.2,2154.0,0.97001488]
[1770145877490,0.01160039,2156.4,2154.0,0.97001488]
[1770145877491,12.02654222,2155.9,2154.3,2.36903132]
[1770145877680,0.01160039,2156.3,2153.9,0.96945423]
[1770145877681,0.01160039,2155.1,2153.9,1.20856812]
[1770145877869,12.03814261,2155.3,2153.5,1.20856812]
[1770145877870,12.02654222,2155.3,2153.5,1.20856812]
[1770145878064,12.02654222,2154.7,2153.6,0.96953549]
[1770145878258,12.02654222,2154.7,2153.7,0.96953549]
[1770145878467,0.01160039,2155.0,2153.8,0.97134061]
[1770145878666,12.02654222,2155.3,2153.9,0.97134061]
[1770145878859,0.01160039,2155.2,2154.0,1.20856812]
[1770145879061,12.02654222,2155.3,2154.2,1.20856812]
[1770145879266,0.01160039,2155.8,2154.4,1.20856812]
[1770145879469,0.01160039,2155.5,2154.2,2.18256812]
[1770145879801,0.01160039,2155.5,2154.3,0.97008476]
[1770145879802,0.01160039,2155.4,2154.3,0.97008476]
[1770145880102,0.01160039,2155.1,2154.2,0.974]
[1770145880403,12.02654222,2155.0,2153.7,2.36935811]
[1770145880607,12.28428674,2155.6,2153.8,0.97167112]
[1770145880789,12.28428674,2155.6,2154.2,2.3690752]
[1770145880989,12.29588713,2156.9,2154.8,10.3433184]
[1770145881188,12.28428674,2156.9,2155.4,2.74314547]
[1770145881498,0.01160039,2156.8,2155.5,2.18023924]
[1770145881791,12.28428674,2157.6,2155.7,1.20856812]
[1770145881999,0.01160039,2157.7,2155.8,0.974]
[1770145882000,0.01160039,2156.6,2155.8,0.974]
[1770145882163,0.01160039,2157.0,2155.8,0.974]
[1770145882164,12.28428674,2157.1,2155.9,0.97167112]
[1770145882365,0.01160039,2156.8,2155.8,0.974]
[1770145882566,12.28428674,2157.1,2155.9,1.15960352]
[1770145882809,0.01160039,2157.0,2155.9,1.15960815]
[1770145883101,0.01160039,2157.9,2155.9,1.15960815]
[1770145883102,0.0011,2157.5,2156.3,1.20856812]
[1770145883311,0.01160039,2157.4,2156.4,1.24068611]
[1770145883484,0.01160039,2157.2,2156.2,0.974]
[1770145883666,0.01160039,2156.8,2155.6,0.37148166]
[1770145883867,0.01160039,2156.8,2155.4,2.13383739]
[1770145883868,0.01160039,2156.6,2155.4,2.13383739]
[1770145884065,12.28428674,2156.8,2155.4,0.974]
[1770145884293,0.01270039,2157.5,2155.4,0.974]
[1770145884294,12.28428674,2156.6,2155.4,0.974]
[1770145884482,12.28428674,2157.2,2155.4,2.13387163]
[1770145884701,0.0011,2157.5,2156.0,0.1024]
[1770145884897,12.28428674,2159.1,2156.7,0.2335703]
[1770145885087,12.28428674,2159.1,2156.4,1.20856812]
[1770145885088,0.32878506,2159.4,2157.6,1.20856812]
[1770145885265,0.14885409,2160.6,2157.4,0.1024]
[1770145885266,12.42154044,2160.6,2158.3,0.1024]
[1770145885465,12.29588713,2160.4,2158.1,0.2335703]
[1770145885791,0.01160039,2159.3,2157.7,0.1024]
[1770145885985,0.98460039,2160.5,2157.9,0.1024]
[1770145886208,0.01160039,2159.9,2158.2,1.15837271]
[1770145886500,12.28428674,2160.0,2157.8,0.2335703]
[1770145886683,12.28428674,2160.0,2157.2,1.53457735]
[1770145886684,0.01160039,2159.5,2157.9,0.973]
[1770145886889,0.01160039,2159.9,2157.9,0.973]
[1770145886890,0.98460039,2160.5,2158.2,0.1024]
[1770145887075,0.973,2160.5,2158.3,0.2335703]
[1770145887406,0.973,2160.5,2157.9,0.973]
[1770145887407,0.01160039,2160.0,2157.9,0.973]
[1770145887606,0.01160039,2159.9,2157.9,0.973]
[1770145887903,13.26888713,2159.8,2157.9,0.973]
[1770145888101,12.29588713,2159.8,2158.1,1.15841952]
[1770145888272,0.01160039,2159.8,2158.3,0.2335703]
[1770145888477,12.28428674,2160.5,2158.3,0.3359703]
[1770145888804,12.28428674,2160.5,2158.6,0.2335703]
[1770145889003,12.28428674,2160.5,2158.5,0.1024]
[1770145889004,0.1372537,2160.6,2158.7,11.32484576]
[1770145889191,0.1372537,2160.6,2159.3,0.2335703]
[1770145889505,0.1372537,2160.6,2158.5,12.4416217]
[1770145889506,13.25728674,2161.3,2158.5,12.4416217]
[1770145889722,12.28428674,2161.1,2158.6,3.48591705]
[1770145890001,12.29588713,2160.6,2158.6,3.25234675]
[1770145890169,12.28428674,2160.6,2158.7,1.15810441]
[1770145890371,12.29588713,2161.5,2159.0,0.2335703]
[1770145890673,0.01160039,2161.3,2158.7,1.15810441]
[1770145891008,12.28428674,2160.6,2158.8,0.57905221]
[1770145891212,12.19588713,2160.6,2158.6,2.131139]
[1770145891380,0.01160039,2160.9,2158.2,10.35184576]
[1770145891381,0.01160039,2159.8,2158.2,0.972]
[1770145891902,0.01160039,2159.6,2158.2,0.972]
[1770145892084,0.01160039,2160.0,2158.2,0.972]
[1770145892085,12.28428674,2160.3,2158.6,1.15812735]
[1770145892291,12.28428674,2160.3,2158.7,0.57907596]
[1770145892487,0.01160039,2160.9,2158.3,1.15831904]
[1770145892488,12.29588713,2160.9,2158.4,0.3359703]
[1770145892807,12.28428674,2160.9,2158.4,0.3359703]
[1770145892996,0.01160039,2160.7,2158.4,0.3359703]
[1770145893174,12.28428674,2160.8,2158.7,0.2335703]
[1770145893578,0.01160039,2160.6,2158.7,0.2335703]
[1770145893806,12.28428674,2160.8,2158.7,0.2335703]
[1770145894106,12.29588713,2161.4,2159.1,0.2335703]
[1770145894308,12.28428674,2162.1,2159.6,0.3359703]
[1770145894506,1.21413522,2162.3,2159.6,0.3359703]
[1770145894507,0.01160039,2161.7,2159.7,0.972]
[1770145894807,12.28428674,2161.9,2159.8,0.2335703]
[1770145895113,0.0011,2160.6,2159.8,0.2335703]
[1770145895298,0.01160039,2161.6,2159.7,0.972]
[1770145895498,0.01160039,2161.6,2159.8,0.972]
[1770145895499,0.01160039,2161.4,2159.8,0.972]
[1770145895700,0.01160039,2161.2,2159.8,0.972]
[1770145896010,0.01160039,2160.9,2159.1,1.15788298]
[1770145896210,0.01160039,2160.6,2159.2,1.55094424]
[1770145896511,0.01160039,2161.0,2159.2,1.55094424]
[1770145896512,0.01160039,2161.0,2159.2,2.12980286]
[1770145896712,12.29588713,2160.9,2158.2,12.4416217]
[1770145897012,12.29588713,2160.9,2158.3,0.972]
[1770145897013,0.01160039,2159.6,2158.3,0.972]
[1770145897177,0.01160039,2160.0,2159.1,1.15785712]
[1770145897379,0.01160039,2160.7,2158.3,0.972]
[1770145897578,0.01160039,2160.4,2159.2,1.15782286]
[1770145897786,0.98360039,2160.9,2159.2,1.15782286]
[1770145897787,12.28538674,2161.5,2159.3,0.2335703]
[1770145898088,0.0011,2161.5,2159.8,0.1024]
[1770145898406,0.0011,2161.5,2159.9,2.12946099]
[1770145898708,0.0011,2161.5,2160.0,0.2335703]
[1770145898910,0.01160039,2162.0,2160.0,0.93285783]
[1770145899097,12.28428674,2162.2,2160.0,0.93285783]
[1770145899282,0.01160039,2161.9,2160.0,0.69928753]
[1770145899485,0.01160039,2161.3,2160.0,0.69928753]
[1770145899727,0.01160039,2161.3,2159.9,0.972]
[1770145900211,0.01160039,2161.4,2159.9,0.972]
[1770145900419,12.28428674,2161.5,2159.9,2.12945276]
[1770145900592,0.01160039,2161.7,2159.9,2.12945276]
[1770145900914,0.971,2162.1,2160.0,0.2335703]
[1770145901112,0.971,2162.1,2160.0,0.93287091]
[1770145901692,12.28428674,2162.2,2160.2,0.2335703]
[1770145902244,12.28428674,2164.5,2161.5,10.35184576]
[1770145902414,12.28428674,2164.5,2160.7,1.15703244]
[1770145902415,0.01160039,2162.2,2161.6,1.03518458]
[1770145902716,0.01160039,2161.8,2160.9,0.971]
[1770145902891,0.01160039,2162.1,2160.9,0.971]
[1770145903095,0.01160039,2163.0,2160.9,0.971]
[1770145903096,0.01160039,2162.8,2160.9,0.971]
[1770145903398,12.29588713,2162.7,2160.9,0.971]
[1770145903592,12.29588713,2163.3,2161.1,0.1024]
[1770145903780,0.01160039,2164.3,2161.0,0.2335703]
[1770145903781,0.33182935,2164.8,2161.8,0.1024]
[1770145903984,0.1372537,2165.0,2162.8,10.35184576]
[1770145904228,0.01160039,2165.2,2163.7,1.1554282]
[1770145904389,0.01160039,2165.2,2163.5,1.15549456]
[1770145904390,0.01160039,2164.6,2163.5,1.15549456]
[1770145904585,12.29588713,2164.9,2162.9,0.971]
[1770145904811,0.01160039,2164.8,2162.9,0.971]
[1770145905188,0.01160039,2164.1,2162.9,0.971]
[1770145905387,0.01160039,2163.8,2162.9,0.971]
[1770145905688,0.01160039,2163.8,2162.1,0.971]
[1770145905689,0.01160039,2163.7,2162.1,0.971]
[1770145906025,0.01160039,2163.1,2162.1,0.971]
[1770145906235,0.01160039,2163.3,2162.1,0.971]
[1770145906392,12.28428674,2163.7,2162.1,0.971]
[1770145906595,0.01160039,2164.0,2162.1,2.12727163]
[1770145906793,0.01160039,2163.9,2162.1,2.12727163]
[1770145907016,12.28428674,2164.4,2162.2,10.58541606]
[1770145907315,12.28428674,2165.1,2163.0,0.2335703]
[1770145907638,0.01160039,2165.7,2162.9,0.1024]
[1770145907639,0.01160039,2165.7,2163.4,0.3359703]
[1770145907834,0.01160039,2165.7,2163.4,1.06878161]
[1770145907835,0.01160039,2164.8,2163.4,1.06878161]
[1770145908040,0.01160039,2164.7,2163.5,0.971]
[1770145908192,0.01160039,2163.9,2161.9,12.4416217]
[1770145908397,0.01160039,2163.9,2162.6,0.971]
[1770145908398,0.01160039,2163.6,2162.6,0.971]
[1770145908732,0.01160039,2163.4,2162.0,0.97]
[1770145908892,0.01160039,2164.7,2162.4,1.15610615]
[1770145909222,0.01160039,2164.9,2162.4,1.15610615]
[1770145909223,0.01160039,2164.6,2162.5,0.57805975]
[1770145909520,0.01160039,2164.0,2162.5,1.54805975]
[1770145909744,0.01160039,2163.8,2162.5,0.97]
[1770145909926,0.01160039,2163.7,2162.2,1.15619434]
[1770145910094,13.26588713,2164.1,2162.1,0.97]
[1770145910095,12.28428674,2164.8,2162.4,1.15609399]
[1770145910295,12.28428674,2164.8,2162.1,2.1262783]
[1770145910296,0.01160039,2164.0,2162.1,2.1262783]
[1770145910499,0.01160039,2164.4,2162.1,2.1262783]
[1770145910500,4.08107304,2168.9,2164.3,2.65317714]
[1770145910794,1.38113119,2172.2,2164.2,2.77218589]
[1770145910795,13.0,2169.8,2167.9,0.2335703]
[1770145911004,0.01160039,2169.2,2168.0,0.97]
[1770145911203,0.01160039,2169.2,2168.1,10.35184576]
[1770145911204,0.00691627,2169.0,2168.1,10.35184576]
[1770145911404,0.00691627,2168.7,2168.2,1.13218458]
[1770145911701,0.00691627,2168.6,2167.8,0.24129333]
[1770145911891,0.00691627,2169.6,2167.9,1.37618978]
[1770145912091,0.00922211,2169.8,2167.9,0.97]
[1770145912290,0.00922211,2169.9,2168.0,1.15313653]
[1770145912524,0.00922211,2170.1,2168.1,0.97]
[1770145912725,0.00922211,2169.9,2168.1,0.97]
[1770145912942,0.97,2170.7,2168.5,10.35184576]
[1770145912943,12.66084296,2170.7,2168.5,10.35184576]
[1770145913149,12.66084296,2170.7,2167.9,1.15318219]
[1770145913150,0.00922211,2170.5,2168.6,0.97]
[1770145913296,12.66084296,2170.7,2168.6,0.97]
[1770145913507,0.00922211,2170.6,2168.6,0.97]
[1770145913705,0.00922211,2170.3,2167.9,1.15318219]
[1770145913908,12.66084296,2170.7,2168.1,0.2335703]
[1770145914151,0.00922211,2172.0,2168.1,0.2335703]
[1770145914152,0.00922211,2170.9,2168.3,0.2335703]
[1770145914306,0.00922211,2170.9,2168.5,0.2335703]
[1770145914506,0.00922211,2170.5,2168.7,0.2335703]
[1770145914769,0.00922211,2170.2,2168.6,0.969]
[1770145914942,0.00922211,2170.1,2168.6,0.969]
[1770145915114,0.00922211,2169.7,2167.8,0.24129333]
[1770145915311,0.00922211,2168.7,2167.8,0.24129333]
[1770145915608,0.00922211,2169.4,2167.8,1.39449842]
[1770145915830,0.00922211,2169.4,2167.8,0.24129333]
[1770145916246,0.0069169,2169.8,2167.8,1.39452068]
[1770145916540,0.0069169,2169.3,2167.3,0.969]
[1770145916728,0.0069169,2169.5,2167.3,5.58303395]
[1770145916930,0.0069169,2169.2,2167.5,1.15339399]
[1770145917113,0.0069169,2169.2,2167.3,0.969]
[1770145917114,0.0069177,2169.1,2167.3,0.969]
[1770145917308,0.0069177,2169.2,2167.3,5.58291145]
[1770145917520,0.0069177,2169.3,2167.4,0.55829115]
[1770145917840,12.43030952,2169.3,2167.4,1.7117455]
[1770145918043,12.43030952,2169.3,2167.4,1.1534404]
[1770145918248,12.42339182,2169.2,2167.4,1.15345575]
[1770145918542,12.43030952,2169.1,2167.3,2.12247529]
[1770145918761,0.0069177,2169.0,2167.3,2.12247529]
[1770145919213,12.43031016,2169.1,2167.3,2.12247529]
[1770145919526,0.0069177,2169.5,2167.4,0.67365112]
[1770145919527,1.24372285,2169.0,2167.4,0.67365112]
[1770145919850,0.00691834,2169.1,2167.4,0.67365112]
[1770145920016,0.00691834,2169.1,2167.3,2.12249501]
[1770145920340,0.00691834,2168.8,2167.3,0.969]
[1770145920559,12.42339182,2168.7,2165.3,1.38539608]
[1770145920713,12.42339182,2168.7,2165.8,0.968]
[1770145920714,0.00691834,2167.7,2165.8,0.968]
[1770145920913,12.42339182,2167.4,2165.3,1.15452898]
[1770145921122,0.00692408,2167.3,2165.3,1.15452898]
[1770145921323,0.00692408,2166.8,2165.0,0.968]
[1770145921553,12.42339182,2168.0,2165.2,1.15461178]
[1770145921755,12.42339182,2168.0,2165.6,10.35184576]